fUSD/lending_fUSD_20240922
["ID","MTS","AMOUNT","RATE_DAILY","PERIOD"]
[338901276,1727041832292,-1096.38479335,0.00012083,3]
[338901277,1727041832301,-93570.98885904,0.00012083,2]
[338901278,1727041832311,-179.47189572,0.00012084,2]
[338901279,1727041832321,-354.31384321,0.00012084,2]
[338901280,1727041832330,-500.0,0.00012084,2]
[338901281,1727041832340,-500.0,0.00012084,2]
[338901282,1727041832350,-500.0,0.00012084,2]
[338901283,1727041832360,-479.81568468,0.00012084,2]
[338901284,1727041832369,-1096.38479333,0.00012084,3]
[338901285,1727041832378,-2000.0,0.00012084,2]
[338901286,1727041832388,-21503.57703761,0.00012084,2]
[338901287,1727041832399,-647.52951436,0.00012084,2]
[338901288,1727041832410,-175393.16483307,0.00012084,2]
[338901289,1727041832424,-3987.45282922,0.00012084,2]
[338901290,1727041832436,-3164.75000067,0.00012084,2]
[338901291,1727041832456,-91307.30104842,0.00012084,2]
[338901292,1727041832467,-920.06431593,0.00012084,2]
[338901293,1727041832480,-812.9464343,0.00012084,2]
[338901294,1727041837962,-200.67596005,0.00012073,2]
[338901295,1727041837972,-152.0,0.00012081,2]
[338901296,1727041837981,-1080.0,0.00012081,2]
[338901297,1727041837991,-556.80302926,0.00012084,2]
[338901298,1727041838002,-6803.22852501,0.00012084,2]
[338901299,1727041838014,-12148.0,0.00012084,2]
[338901300,1727041838056,-3181.17244625,0.00012084,2]
[338901301,1727041838079,-1606.73102151,0.00012084,2]
[338901302,1727041838137,-300.0,0.00012084,2]
[338901404,1727041839824,-2775.94000765,0.00012084,2]
[338901405,1727041839835,-1669.33501762,0.00012084,2]
[338901406,1727041839847,-770.58734516,0.00012084,2]
[338901407,1727041839884,-1677.32027534,0.00012084,2]
[338901425,1727041843424,2121.8735,0.00011982,2]
[338901426,1727041845575,-12643.10906386,0.00012084,2]
[338901427,1727041845586,-3700.0,0.00012084,2]
[338901428,1727041845686,-45336.22867304,0.00012084,2]
[338901429,1727041845798,-343.53915486,0.00012084,2]
[338901430,1727041845810,-3165.03701549,0.00012084,2]
[338901431,1727041845824,-522.01898272,0.00012084,2]
[338901432,1727041845837,-416.0689448,0.00012084,2]
[338901504,1727041850749,150.0,0.00011858,2]
[338901505,1727041855786,1146.1116,0.00011982,2]
[338901506,1727041867453,750.0,0.00011553,2]
[338901507,1727041877707,500.0,0.00011982,2]
[338901508,1727041878028,226695.5408,0.00011982,2]
[338901509,1727041901751,662.24075538,0.00011985,2]
[338901510,1727041909115,95375.6902,0.00011982,2]
[338901511,1727041919115,300.0,0.000112,4]
[338901512,1727041921260,700.0,0.000113,4]
[338901513,1727041923364,1000.0,0.000114,4]
[338901514,1727041925477,1400.0,0.000115,4]
[338901515,1727041927590,1700.0,0.000116,4]
[338901516,1727041929700,300.0,0.000117,4]
[338901517,1727041931787,300.0,0.000118,4]
[338901518,1727041933139,449.57,0.0001155,2]
[338901519,1727041933909,300.0,0.000119,4]
[338901520,1727041938193,534.61946613,8.249e-05,2]
[338901521,1727041950327,4590.97735456,0.00011985,2]
[338901522,1727041963940,1231.9446,0.00011982,2]
[338901523,1727041968717,4401.2864,0.00011984,2]
[338901524,1727041969798,158.34,0.00010959,2]
[338901525,1727041974642,336.84020246,0.00011985,2]
[338901526,1727041987195,5436.2611,0.00011984,2]
[338901527,1727041995256,217.06,0.0001145,2]
[338901528,1727042011672,950.5619219,0.00011985,2]
[338901529,1727042023859,500.0,8.249e-05,2]
[338901530,1727042024208,500.0,8.249e-05,2]
[338901531,1727042025344,1210.8453,0.00011984,2]
[338901532,1727042049610,500.0,8.249e-05,2]
[338901533,1727042061581,1192.71,0.0001145,2]
[338901534,1727042089234,1050.0,0.00011,2]
[338901535,1727042095878,500.0,8.249e-05,2]
[338901536,1727042114001,200.0,0.00011504,2]
[338901537,1727042129186,150.0,0.00011446,2]
[338901538,1727042181850,500.0,8.249e-05,2]
[338901539,1727042211338,916.34,0.0001146,2]
[338901540,1727042276262,250.0,0.00011428,2]
[338901541,1727042293152,170.92,9.142e-05,2]
[338901542,1727042308480,152368.17423229,0.00011984,2]
[338901543,1727042308508,2972.48326771,0.00011984,2]
[338901544,1727042319438,167.63655556,0.00011419,2]
[338901545,1727042319467,39.20344444,0.00011419,2]
[338901546,1727042348427,165.33833334,0.00011428,2]
[338901547,1727042348454,84.66166666,0.00011428,2]
[338901548,1727042349209,80.67666668,9.501e-05,2]
[338901549,1727042349229,165.33833334,9.501e-05,2]
[338901550,1727042349250,7.96499998,9.501e-05,2]
[338901551,1727042349548,157.37333336,0.00011765,2]
[338901552,1727042349574,96.60666664,0.00011765,2]
[338901553,1727042380467,500.0,8.249e-05,2]
[338901554,1727042390701,150.0,0.00011419,2]
[338901560,1727042482162,150.0,0.00011989,2]
[338901561,1727042544439,150.0,0.00010959,2]
[338901562,1727042547052,153.58322223,0.00011375,2]
[338901563,1727042547074,13.49677777,0.00011375,2]
[338901564,1727042561459,150.0,0.00011345,2]
[338901566,1727042676732,150.0,0.00011383,2]
[338901567,1727042676753,150.0,0.00011383,2]
[338901568,1727042676776,150.0,0.00011383,2]
[338901569,1727042676797,150.0,0.00011383,2]
[338901570,1727042676817,150.0,0.00011383,2]
[338901571,1727042676837,90.0,0.00011383,2]
[338901572,1727042702467,150.0,0.00010874,2]
[338901573,1727042713031,216.80795362,0.00010874,2]
[338901594,1727042737121,150.0,8.249e-05,2]
[338901595,1727042737149,100.0,8.249e-05,2]
[338901596,1727042737931,50.0,8.249e-05,2]
[338901597,1727042737954,150.0,8.249e-05,2]
[338901598,1727042737975,150.0,8.249e-05,2]
[338901599,1727042737998,150.0,8.249e-05,2]
[338901601,1727042760901,150.0,8.249e-05,2]
[338901602,1727042760929,150.0,8.249e-05,2]
[338901603,1727042760953,150.0,8.249e-05,2]
[338901604,1727042760975,150.0,8.249e-05,2]
[338901605,1727042760996,42.82,8.249e-05,2]
[338901606,1727042773358,790.95,0.00011354,2]
[338901607,1727042798783,150.0,0.00011326,2]
[338901608,1727042798804,100.0,0.00011326,2]
[338901609,1727042893485,150.0,0.00011333,2]
[338901610,1727042893507,124.0,0.00011333,2]
[338901611,1727042904169,150.0,9.067e-05,2]
[338901612,1727042904198,20.92,9.067e-05,2]
[338901613,1727042907352,129.08,9.387e-05,2]
[338901614,1727042907379,148.33,9.387e-05,2]
[338901615,1727042907729,1.67,0.00011651,2]
[338901616,1727042907754,150.0,0.00011651,2]
[338901617,1727042907778,125.74,0.00011651,2]
[338901618,1727042982595,150.0,8.249e-05,2]
[338901619,1727042982615,150.0,8.249e-05,2]
[338901620,1727042982634,150.0,8.249e-05,2]
[338901621,1727042982654,16.48023641,8.249e-05,2]
[338901622,1727043002641,150.0,0.00011651,2]
[338901623,1727043003007,150.0,0.00011651,2]
[338901624,1727043003069,150.0,0.00011651,2]
[338901625,1727043003277,150.0,0.00011651,2]
[338901626,1727043003477,150.0,0.00011651,2]
[338901627,1727043003690,150.0,0.00011651,2]
[338901628,1727043003912,150.0,0.00011651,2]
[338901629,1727043004112,150.0,0.00011651,2]
[338901630,1727043004399,150.0,0.00011651,2]
[338901631,1727043004507,150.0,0.00011651,2]
[338901632,1727043004716,150.0,0.00011651,2]
[338901633,1727043004917,150.0,0.00011651,2]
[338901634,1727043005110,150.0,0.00011651,2]
[338901635,1727043005294,150.0,0.00011651,2]
[338901636,1727043005798,150.0,0.00011651,2]
[338901637,1727043005997,150.0,0.00011651,2]
[338901638,1727043006208,150.0,0.00011651,2]
[338901639,1727043006450,150.0,0.00011651,2]
[338901640,1727043006471,4.67203195,0.00011651,2]
[338901652,1727043031835,-150.0,0.00012063,2]
[338901654,1727043031844,-300.0,0.0001207,2]
[338901656,1727043031854,-243.274,0.00012071,2]
[338901658,1727043031863,-145.94168449,0.00012071,2]
[338901661,1727043031874,-4.05831551,0.00012071,2]
[338901662,1727043031883,-595.58092462,0.00012071,2]
[338901663,1727043031925,-312.16029851,0.00012071,2]
[338901664,1727043031936,-902.36212766,0.00012071,2]
[338901665,1727043031948,-2207.62085434,0.00012071,2]
[338901666,1727043031959,-622.77,0.00012071,2]
[338901667,1727043032039,-588.01158738,0.00012071,2]
[338901668,1727043032132,-8263.49420749,0.00012071,2]
[338901669,1727043032142,-5867.0,0.00012071,2]
[338901670,1727043032151,-1147.0,0.00012071,2]
[338901671,1727043032160,-153.42,0.00012074,2]
[338901672,1727043032169,-200.85733544,0.00012074,2]
[338901673,1727043032178,-153.42,0.00012075,2]
[338901674,1727043032189,-153.42,0.00012075,2]
[338901675,1727043032198,-153.42,0.00012075,2]
[338901676,1727043032207,-153.42,0.00012075,2]
[338901677,1727043032216,-340.377,0.00012076,2]
[338901678,1727043032225,-150.0,0.00012076,2]
[338901680,1727043032237,-10865.41585045,0.00012077,2]
[338901682,1727043032249,-299.00615911,0.00012077,2]
[338901684,1727043032260,-1166.84290704,0.00012077,2]
[338901685,1727043032268,-329.9457001,0.00012077,2]
[338901686,1727043032278,-152.182,0.00012081,2]
[338901687,1727043032288,-164.0,0.00012081,2]
[338901688,1727043032296,-164.214,0.00012081,2]
[338901689,1727043032306,-285.663,0.00012081,2]
[338901690,1727043032316,-200.0,0.00012081,2]
[338901692,1727043032325,-151.345,0.00012081,2]
[338901694,1727043032335,-156.446,0.00012081,2]
[338901696,1727043032344,-250.0,0.00012081,2]
[338901698,1727043032352,-250.0,0.00012081,2]
[338901700,1727043032361,-170.683,0.00012081,2]
[338901702,1727043032370,-150.851,0.00012081,2]
[338901704,1727043032379,-727.82739286,0.00012081,2]
[338901706,1727043032392,-821.17260714,0.00012081,2]
[338901708,1727043032401,-625.0,0.00012081,2]
[338901710,1727043032410,-448.0,0.00012081,2]
[338901712,1727043032419,-1262.0,0.00012081,2]
[338901714,1727043032428,-810.0,0.00012081,2]
[338901716,1727043032437,-558.0,0.00012081,2]
[338901718,1727043032446,-150.0,0.00012081,2]
[338901720,1727043032455,-933.0,0.00012081,2]
[338901722,1727043032464,-1903.0,0.00012081,2]
[338901724,1727043032474,-553.0,0.00012081,2]
[338901726,1727043032483,-3347.0,0.00012081,2]
[338901728,1727043032493,-286.036,0.00012081,2]
[338901730,1727043032502,-1913.0,0.00012081,2]
[338901732,1727043032512,-12023.86012704,0.00012082,2]
[338901734,1727043032521,-224.57554126,0.00012083,2]
[338901736,1727043032530,-300.49052901,0.00012083,2]
[338901738,1727043032540,-21299.26,0.00012083,2]
[338901740,1727043032549,-499.99,0.00012083,2]
[338901742,1727043032558,-13852.5,0.00012083,2]
[338901744,1727043032568,-500.0,0.00012084,2]
[338901746,1727043032577,-500.0,0.00012084,2]
[338901748,1727043032586,-414.99312157,0.00012084,2]
[338901750,1727043032595,-2763.8514824,0.00012084,2]
[338901752,1727043032605,-762.4846219,0.00012084,2]
[338901754,1727043032614,-2000.0,0.00012084,2]
[338901756,1727043032623,-200.0,0.00012084,2]
[338901758,1727043032633,-2000.0,0.00012084,2]
[338901760,1727043032643,-662.0,0.00012084,2]
[338901762,1727043032652,-17203.29170162,0.00012084,2]
[338901764,1727043032662,-111860.78125661,0.00012084,2]
[338901767,1727043037914,-703.01355159,0.00012084,2]
[338901768,1727043037926,-29517.04542,0.00012084,2]
[338901770,1727043038014,-930.71763429,0.00012084,2]
[338901771,1727043038112,-436644.71582789,0.00012084,2]
[338901772,1727043038123,-822.49017547,0.00012084,2]
[338901773,1727043038137,-285.49172499,0.00012084,2]
[338901774,1727043038203,-1357.22542988,0.00012084,2]
[338901775,1727043038214,-2084.0327375,0.00012084,2]
[338901776,1727043038225,-2158.98320904,0.00012084,2]
[338901777,1727043038243,-2166.78342138,0.00012084,2]
[338901778,1727043038255,-2894.75,0.00012084,2]
[338901779,1727043038268,-4563.20000002,0.00012084,2]
[338901780,1727043038282,-2177.28935891,0.00012084,2]
[338901788,1727043038858,-6343.80348218,0.00012084,2]
[338901789,1727043038870,-335.55994863,0.00012084,2]
[338901790,1727043038884,-660.68832224,0.00012084,2]
[338901794,1727043038938,-5874.02415,0.00012084,2]
[338901796,1727043038949,-282.04696975,0.00012084,2]
[338901798,1727043038960,-566.76354058,0.00012084,2]
[338901800,1727043038971,-2355.0,0.00012084,2]
[338901803,1727043038982,-3524.79836481,0.00012084,2]
[338901808,1727043039028,150.0,0.0001157,2]
[338901812,1727043039048,150.0,0.0001157,2]
[338901815,1727043039069,150.0,0.0001157,2]
[338901819,1727043039093,64.94500082,0.0001157,2]
[338901890,1727043039821,-662.70634916,0.00012084,2]
[338901892,1727043039834,-4379.11477664,0.00012084,2]
[338901895,1727043039847,-807.664508,0.00012084,2]
[338901897,1727043039861,-526.30469991,0.00012084,2]
[338901899,1727043039872,-939.63137312,0.00012084,2]
[338901901,1727043039883,-124083.35302252,0.00012084,2]
[338901904,1727043039895,-15635.63209388,0.00012084,2]
[338901906,1727043039905,-442.3024674,0.00012084,2]
[338901908,1727043039922,-2242.35735466,0.00012084,2]
[338901910,1727043039933,-49999.84416003,0.00012084,2]
[338901912,1727043039944,-2537.03952318,0.00012084,2]
[338901914,1727043039955,-630.25841339,0.00012084,2]
[338901915,1727043039965,-798.47801632,0.00012084,2]
[338901916,1727043039976,-2476.73398211,0.00012084,2]
[338901917,1727043039987,-902.16144431,0.00012084,2]
[338901918,1727043039997,-1504.629,0.00012084,2]
[338901919,1727043040008,-2525.640404,0.00012084,2]
[338901920,1727043040022,-518.59583651,0.00012084,2]
[338901921,1727043040034,-258.25752137,0.00012084,2]
[338901922,1727043040045,-685.0,0.00012084,2]
[338901923,1727043040055,-2511.31265484,0.00012084,2]
[338901924,1727043040066,-984.9210532,0.00012084,2]
[338901925,1727043040077,-553.56991133,0.00012084,2]
[338901926,1727043040088,-5954.5648209,0.00012084,2]
[338901927,1727043040098,-2954.1894928,0.00012084,2]
[338901928,1727043040109,-1593.75750387,0.00012084,2]
[338901929,1727043040119,-8646.86063141,0.00012084,2]
[338901931,1727043040130,-474.621015,0.00012084,2]
[338901933,1727043040144,-505.53116172,0.00012084,2]
[338901935,1727043040155,-470.89476816,0.00012084,2]
[338901937,1727043040166,-4276.48182047,0.00012084,2]
[338901938,1727043040180,-485.3980518,0.00012084,2]
[338901939,1727043040191,-2141.25728077,0.00012084,2]
[338901948,1727043042971,-1250.0,0.00012084,2]
[338901949,1727043042982,-685.55999995,0.00012084,2]
[338901950,1727043043044,-46619.27462341,0.00012084,2]
[338901951,1727043043055,-594.0,0.00012084,2]
[338901952,1727043043066,-431.70792722,0.00012085,2]
[338901953,1727043043077,-15550.8997788,0.00012085,2]
[338901954,1727043043089,-5436.26115702,0.00012085,2]
[338901955,1727043043179,-1107.61164532,0.00012085,2]
[338901956,1727043043192,-1740.63,0.00012085,2]
[338901957,1727043043206,-8674.95,0.00012085,2]
[338901964,1727043045805,-859.59283247,0.00012085,2]
[338901965,1727043045818,-49481.64873752,0.00012085,2]
[338901966,1727043045830,-598.03632769,0.00012085,2]
[338901967,1727043045841,-20472.00000018,0.00012085,2]
[338901968,1727043045853,-289.77500668,0.00012085,2]
[338901969,1727043045888,-287.88767852,0.00012085,2]
[338901970,1727043045960,-1021.47197273,0.00012085,2]
[338901971,1727043045972,-5923.552,0.00012085,2]
[338901972,1727043045983,-349.99877428,0.00012085,2]
[338901973,1727043046032,-335.451,0.00012085,2]
[338901974,1727043046043,-12854.29632384,0.00012085,2]
[338901975,1727043046105,-2695.8483424,0.00012085,2]
[338901976,1727043047953,150.0,0.00012015,2]
[338901977,1727043048084,150.0,0.00011887,2]
[338901978,1727043048148,150.0,0.00012023,2]
[338901979,1727043048196,150.0,0.00011832,2]
[338901980,1727043052121,150.0,0.00011784,2]
[338901981,1727043052142,150.0,0.00011784,2]
[338901982,1727043052166,21.72,0.00011784,2]
[338901983,1727043063554,150.0,0.00011832,2]
[338901984,1727043063666,150.0,0.00011841,2]
[338901985,1727043063689,150.0,0.00011841,2]
[338901986,1727043069469,7500.0,0.00011985,2]
[338901987,1727043075004,150.0,0.00011984,2]
[338901988,1727043075025,150.0,0.00011984,2]
[338901989,1727043075046,150.0,0.00011984,2]
[338901990,1727043075073,16495.639,0.00011984,2]
[338901991,1727043077498,150.0,0.00011739,2]
[338901992,1727043077518,150.0,0.00011739,2]
[338901993,1727043077538,150.0,0.00011739,2]
[338901994,1727043077558,15.87,0.00011739,2]
[338901995,1727043085868,150.0,0.00011646,2]
[338901996,1727043085890,100.0,0.00011646,2]
[338901997,1727043094572,529.74787345,8.249e-05,2]
[338901998,1727043095488,150.0,0.00011984,2]
[338901999,1727043095513,472.7354,0.00011984,2]
[338902000,1727043098705,150.0,0.00011885,2]
[338902001,1727043098725,150.0,0.00011885,2]
[338902002,1727043098746,150.0,0.00011885,2]
[338902003,1727043098766,150.0,0.00011885,2]
[338902004,1727043098786,150.0,0.00011885,2]
[338902005,1727043098806,150.0,0.00011885,2]
[338902006,1727043098827,150.0,0.00011885,2]
[338902007,1727043098850,150.0,0.00011885,2]
[338902008,1727043098873,150.0,0.00011885,2]
[338902009,1727043098894,150.0,0.00011885,2]
[338902010,1727043098915,150.0,0.00011885,2]
[338902011,1727043098938,150.0,0.00011885,2]
[338902012,1727043098958,150.0,0.00011885,2]
[338902013,1727043098979,150.0,0.00011885,2]
[338902014,1727043098999,150.0,0.00011885,2]
[338902015,1727043099022,150.0,0.00011885,2]
[338902016,1727043099042,150.0,0.00011885,2]
[338902017,1727043099062,150.0,0.00011885,2]
[338902018,1727043099083,150.0,0.00011885,2]
[338902019,1727043099103,150.0,0.00011885,2]
[338902020,1727043099123,150.0,0.00011885,2]
[338902021,1727043099143,150.0,0.00011885,2]
[338902022,1727043099164,150.0,0.00011885,2]
[338902023,1727043099187,297.02494408,0.00011885,2]
[338902024,1727043099212,2112.08073549,0.00011885,2]
[338902025,1727043116198,500.0,8.249e-05,2]
[338902026,1727043117778,500.0,0.00010989,2]
[338902027,1727043119524,1056.9118,0.00011984,2]
[338902028,1727043119857,2306.9128,0.00011984,2]
[338902029,1727043121777,73682.1524,0.00011985,2]
[338902030,1727043131327,2084.87757362,0.00011992,2]
[338902031,1727043139337,185.29,0.00011587,2]
[338902032,1727043140079,153.31517476,8.249e-05,2]
[338902033,1727043162007,500.0,8.249e-05,2]
[338902034,1727043184910,500.0,8.249e-05,2]
[338902035,1727043184947,155.19184526,0.00011985,2]
[338902036,1727043190118,155.19184526,0.00011986,2]
[338902037,1727043195334,155.19184526,0.00011987,2]
[338902039,1727043197241,1874.1786,0.00011985,2]
[338902040,1727043200176,155.19184526,0.00011988,2]
[338902041,1727043203056,250.0,0.00011524,2]
[338902042,1727043203112,943.2558,0.00011985,2]
[338902043,1727043204901,155.19184526,0.00011988,2]
[338902044,1727043209259,328.0,0.00011524,2]
[338902045,1727043209928,155.19184526,0.00011989,2]
[338902046,1727043212346,500.0,0.00011983,2]
[338902047,1727043212804,500.0,0.00011986,2]
[338902048,1727043213330,500.0,0.00011987,2]
[338902049,1727043214937,155.19184526,0.0001199,2]
[338902050,1727043217065,200.0,0.00011986,2]
[338902051,1727043219960,155.19184526,0.00011991,2]
[338902052,1727043245058,182.82,0.00010959,2]
[338902053,1727043252625,500.0,8.249e-05,2]
[338902054,1727043267455,151.0,0.00011988,2]
[338902055,1727043267788,298.0,0.00011988,2]
[338902056,1727043274811,500.0,8.249e-05,2]
[338902057,1727043303591,180.45951325,0.00011991,2]
[338902058,1727043316164,631.37294693,0.00011991,2]
[338902059,1727043347182,803.82,0.00011496,2]
[338902060,1727043348808,2053.0065,0.00011984,2]
[338902061,1727043372829,1975.2353,0.00011984,2]
[338902062,1727043373425,882.98767385,0.00011985,2]
[338902063,1727043388780,8066.0351,0.00011984,2]
[338902064,1727043419495,1115.45145228,0.00011744,2]
[338902065,1727043421779,645.32,0.00011314,2]
[338902066,1727043458948,282.43,9.396e-05,2]
[338902067,1727043459298,282.43,0.0001166,2]
[338902068,1727043462815,794.3,0.00011314,2]
[338902069,1727043466812,268.49,0.00011314,2]
[338902070,1727043485676,32269.1725,0.00011984,2]
[338902071,1727043502094,1000.0,0.00011836,2]
[338902072,1727043541202,500.0,8.249e-05,2]
[338902073,1727043563956,600.0,8.249e-05,2]
[338902074,1727043601187,250.0,0.00011395,2]
[338902075,1727043605952,168.89,0.00012022,2]
[338902076,1727043608736,500.0,8.249e-05,2]
[338902077,1727043621723,20945.73154555,0.00011985,2]
[338902078,1727043669515,150.02062703,0.00011985,2]
[338902079,1727043682416,150.0,0.0001195,2]
[338902080,1727043682455,150.0,0.00011855,2]
[338902081,1727043682487,150.0,0.00011941,2]
[338902082,1727043682575,150.0,0.00011941,2]
[338902083,1727043682628,150.0,0.00011836,2]
[338902084,1727043682689,150.0,0.00011924,2]
[338902085,1727043696411,368.48266502,0.00012017,2]
[338902086,1727043738656,250.0,0.00011335,2]
[338902087,1727043802062,150.0,0.00011996,2]
[338902088,1727043808328,500.0,0.00021993,120]
[338902089,1727043824008,500.0,0.00011986,2]
[338902090,1727043827804,200.0,0.00011986,2]
[338902091,1727043859276,150.0,0.00022,120]
[338902092,1727043860197,150.0,0.00022,120]
[338902093,1727043860615,150.0,0.00022,120]
[338902094,1727043860988,150.0,0.00022,120]
[338902095,1727043861359,150.0,0.00022,120]
[338902096,1727043861660,150.0,0.00022,120]
[338902097,1727043862034,150.0,0.00022,120]
[338902098,1727043862424,150.0,0.00022,120]
[338902099,1727043862700,150.0,0.00022,120]
[338902100,1727043863064,150.0,0.00022,120]
[338902101,1727043863686,150.0,0.00022,120]
[338902102,1727043863998,150.0,0.00022,120]
[338902103,1727043864331,150.0,0.00022,120]
[338902104,1727043864656,150.0,0.00022,120]
[338902105,1727043865031,150.0,0.00022,120]
[338902106,1727043865325,150.0,0.00022,120]
[338902107,1727043865934,150.0,0.00022,120]
[338902108,1727043866289,150.0,0.00022,120]
[338902109,1727043866605,150.0,0.00022,120]
[338902110,1727043866908,150.0,0.00022,120]
[338902111,1727043867234,150.0,0.00022,120]
[338902112,1727043867538,150.0,0.00022,120]
[338902113,1727043867875,150.0,0.00022,120]
[338902114,1727043868211,150.0,0.00022,120]
[338902115,1727043868537,150.0,0.00022,120]
[338902116,1727043868881,150.0,0.00022,120]
[338902117,1727043869429,150.0,0.00022,120]
[338902118,1727043869516,150.0,0.00022,120]
[338902119,1727043893892,1050.0,0.00011,2]
[338902120,1727043902612,150.0,0.00022,120]
[338902121,1727043903134,150.0,0.00022,120]
[338902122,1727043903418,150.0,0.00022,120]
[338902123,1727043903819,150.0,0.00022,120]
[338902124,1727043904093,150.0,0.00022,120]
[338902125,1727043904465,150.0,0.00022,120]
[338902126,1727043904910,150.0,0.00022,120]
[338902127,1727043905214,150.0,0.00022,120]
[338902128,1727043905616,150.0,0.00022,120]
[338902129,1727043905993,150.0,0.00022,120]
[338902130,1727043906315,150.0,0.00022,120]
[338902131,1727043906714,150.0,0.00022,120]
[338902132,1727043907139,150.0,0.00022,120]
[338902133,1727043907499,150.0,0.00022,120]
[338902134,1727043907791,150.0,0.00022,120]
[338902135,1727043908149,150.0,0.00022,120]
[338902136,1727043908542,150.0,0.00022,120]
[338902137,1727043908881,150.0,0.00022,120]
[338902138,1727043909213,150.0,0.00022,120]
[338902139,1727043909589,150.0,0.00022,120]
[338902140,1727043928746,13699.65354098,0.000101,2]
[338902145,1727044000263,1000.0,0.00011375,2]
[338902146,1727044004536,270.76,9.457e-05,2]
[338902147,1727044004885,270.76,0.00011721,2]
[338902148,1727044013190,430.73,0.00011375,2]
[338902149,1727044015265,176.97,0.00010959,2]
[338902150,1727044048239,195.96,0.00011345,2]
[338902151,1727044063430,388.55,0.00010959,2]
[338902152,1727044084487,883.09,0.00010959,2]
[338902160,1727044169052,515.81342883,0.00011932,2]
[338902161,1727044205105,168.9,0.00012021,2]
[338902163,1727044230594,500.0,8.249e-05,2]
[338902174,1727044231964,-300.0,0.00012031,2]
[338902175,1727044231973,-160.43123519,0.00012032,2]
[338902176,1727044231985,-638.56876481,0.00012032,2]
[338902177,1727044231994,-799.0,0.00012032,2]
[338902178,1727044232212,-799.0,0.00012032,2]
[338902179,1727044232221,-783.02113438,0.00012032,2]
[338902180,1727044232230,-150.0,0.0001205,2]
[338902181,1727044232239,-150.0,0.00012062,2]
[338902182,1727044232248,-153.43,0.00012074,2]
[338902183,1727044232258,-448.0,0.00012075,2]
[338902184,1727044232267,-150.0,0.00012075,2]
[338902185,1727044232277,-1549.0,0.00012075,2]
[338902186,1727044232286,-625.0,0.00012075,2]
[338902187,1727044232294,-1262.0,0.00012075,2]
[338902188,1727044232303,-4742.39621658,0.0001208,2]
[338902189,1727044232312,-150.0,0.0001208,2]
[338902190,1727044232321,-933.0,0.00012081,2]
[338902191,1727044232330,-150.0,0.00012081,2]
[338902192,1727044232341,-558.0,0.00012081,2]
[338902193,1727044232350,-810.0,0.00012081,2]
[338902194,1727044232359,-1903.0,0.00012081,2]
[338902195,1727044232368,-553.0,0.00012081,2]
[338902196,1727044232377,-1913.0,0.00012081,2]
[338902197,1727044232386,-272.302,0.00012081,2]
[338902198,1727044232396,-5867.0,0.00012081,2]
[338902199,1727044232406,-746.40542393,0.00012083,2]
[338902200,1727044232417,-150.2452645,0.00012084,2]
[338902201,1727044232426,-2151.2742269,0.00012084,2]